fUST/lending_fUST_20260104
["ID","MTS","AMOUNT","RATE_DAILY","PERIOD"]
[400427217,1767539454698,-500.0,0.00021772,2]
[400427218,1767539454707,-1800.0,0.00021773,2]
[400427219,1767539454717,-1000.0,0.0002178,5]
[400427220,1767539454726,-1000.0,0.000218,5]
[400427221,1767539454735,-1000.0,0.0002182,5]
[400427222,1767539454745,-1000.0,0.0002184,5]
[400427223,1767539454754,-1000.0,0.00021849,10]
[400427224,1767539454764,-1000.0,0.00021849,10]
[400427225,1767539454773,-579.0,0.00021849,10]
[400427226,1767539454782,-2000.0,0.00021849,7]
[400427227,1767539454792,-1068.38538,0.0002186,5]
[400427228,1767539454802,-1000.0,0.0002186,5]
[400427229,1767539454811,-1800.0,0.00021877,2]
[400427230,1767539454821,-1000.0,0.0002188,5]
[400427231,1767539454830,-1000.0,0.0002188,5]
[400427232,1767539454840,-1800.0,0.00021884,2]
[400427233,1767539454850,-1000.0,0.000219,5]
[400427234,1767539454860,-1000.0,0.000219,5]
[400427235,1767539454870,-160.0,0.00021904,13]
[400427236,1767539454881,-161.11360208,0.00021904,5]
[400427237,1767539454891,-484.14592223,0.00021917,2]
[400427238,1767539454901,-280.55092546,0.00021917,2]
[400427239,1767539454911,-414.03196504,0.00021917,2]
[400427240,1767539454920,-500.0,0.00021917,2]
[400427241,1767539454931,-500.0,0.00021917,2]
[400427242,1767539454941,-514.76072551,0.00021917,2]
[400427243,1767539454951,-568.30476871,0.00021917,2]
[400427244,1767539454961,-500.0,0.00021917,2]
[400427245,1767539454971,-500.0,0.00021917,2]
[400427246,1767539454980,-590.38305544,0.00021917,2]
[400427247,1767539454990,-500.0,0.00021917,2]
[400427248,1767539454999,-511.11993933,0.00021917,2]
[400427249,1767539455009,-500.0,0.00021917,2]
[400427250,1767539455018,-498.33524231,0.00021917,2]
[400427251,1767539455029,-527.78724144,0.00021917,2]
[400427252,1767539455039,-252.14368805,0.00021917,2]
[400427253,1767539455048,-500.0,0.00021917,2]
[400427254,1767539455058,-500.0,0.00021917,2]
[400427255,1767539455068,-500.0,0.00021917,2]
[400427256,1767539455078,-500.0,0.00021917,2]
[400427257,1767539455088,-500.0,0.00021917,2]
[400427258,1767539455098,-388.76219323,0.00021917,2]
[400427259,1767539455108,-500.0,0.00021917,2]
[400427260,1767539455117,-500.0,0.00021917,2]
[400427261,1767539455127,-500.0,0.00021917,2]
[400427262,1767539455137,-500.0,0.00021917,2]
[400427263,1767539455147,-500.0,0.00021917,2]
[400427264,1767539455156,-500.0,0.00021917,2]
[400427265,1767539455166,-388.33304346,0.00021917,2]
[400427266,1767539455175,-533.39936658,0.00021917,2]
[400427267,1767539455185,-500.0,0.00021917,2]
[400427268,1767539455196,-1210.31,0.00021917,2]
[400427269,1767539455205,-500.0,0.00021917,2]
[400427270,1767539455216,-530.63758572,0.00021917,2]
[400427271,1767539455225,-187.63101548,0.00021917,2]
[400427272,1767539455234,-500.0,0.00021917,2]
[400427273,1767539455244,-500.0,0.00021917,2]
[400427274,1767539455253,-500.0,0.00021917,2]
[400427275,1767539455263,-500.0,0.00021917,2]
[400427276,1767539455272,-500.0,0.00021917,2]
[400427277,1767539455282,-415.36403052,0.00021917,2]
[400427278,1767539455291,-500.0,0.00021917,2]
[400427279,1767539455301,-514.54430921,0.00021917,2]
[400427280,1767539455311,-500.0,0.00021917,2]
[400427281,1767539455322,-500.0,0.00021917,2]
[400427282,1767539455331,-500.0,0.00021917,2]
[400427283,1767539455344,-500.0,0.00021917,2]
[400427284,1767539455354,-465.79095689,0.00021917,2]
[400427285,1767539455363,-500.0,0.00021917,2]
[400427286,1767539455373,-500.0,0.00021917,2]
[400427287,1767539455384,-500.0,0.00021917,2]
[400427288,1767539455394,-500.0,0.00021917,2]
[400427289,1767539455404,-500.0,0.00021917,2]
[400427290,1767539455416,-500.0,0.00021917,2]
[400427291,1767539455426,-500.0,0.00021917,2]
[400427292,1767539455435,-500.0,0.00021917,2]
[400427293,1767539455445,-500.0,0.00021917,2]
[400427294,1767539455583,-500.0,0.00021917,2]
[400427295,1767539455593,-500.0,0.00021917,2]
[400427296,1767539455602,-500.0,0.00021917,2]
[400427297,1767539455612,-500.0,0.00021917,2]
[400427298,1767539455622,-500.0,0.00021917,2]
[400427299,1767539455632,-500.0,0.00021917,2]
[400427300,1767539455642,-561.26744769,0.00021917,2]
[400427301,1767539455651,-761.23,0.00021917,2]
[400427302,1767539455661,-500.0,0.00021917,2]
[400427303,1767539455671,-500.0,0.00021917,2]
[400427304,1767539455680,-459.85297962,0.00021917,2]
[400427305,1767539455690,-500.0,0.00021917,2]
[400427306,1767539455700,-500.0,0.00021917,2]
[400427307,1767539455709,-273.41966547,0.00021917,2]
[400427308,1767539455719,-500.0,0.00021917,2]
[400427309,1767539455729,-500.0,0.00021917,2]
[400427310,1767539455738,-500.0,0.00021917,2]
[400427311,1767539455748,-500.0,0.00021917,2]
[400427312,1767539455757,-200.35586052,0.00021917,2]
[400427313,1767539455767,-410.64445171,0.00021917,2]
[400427314,1767539455777,-500.0,0.00021917,2]
[400427315,1767539455787,-500.0,0.00021917,2]
[400427316,1767539455796,-500.0,0.00021917,2]
[400427317,1767539455807,-500.0,0.00021917,2]
[400427318,1767539455816,-500.0,0.00021917,2]
[400427319,1767539455826,-500.0,0.00021917,2]
[400427320,1767539455836,-500.0,0.00021917,2]
[400427321,1767539455845,-234.01573616,0.00021917,2]
[400427322,1767539455855,-500.0,0.00021917,2]
[400427323,1767539455865,-500.0,0.00021917,2]
[400427324,1767539455875,-500.0,0.00021917,2]
[400427325,1767539455884,-500.0,0.00021917,2]
[400427326,1767539455895,-500.0,0.00021917,2]
[400427327,1767539455905,-500.0,0.00021917,2]
[400427328,1767539455915,-500.0,0.00021917,2]
[400427329,1767539455924,-500.0,0.00021917,2]
[400427330,1767539455934,-500.0,0.00021917,2]
[400427331,1767539455943,-500.0,0.00021917,2]
[400427332,1767539455953,-430.8790154,0.00021917,2]
[400427333,1767539455963,-193.24334679,0.00021917,2]
[400427334,1767539455972,-487.42389223,0.00021917,2]
[400427335,1767539455982,-478.56816971,0.00021917,2]
[400427336,1767539455991,-500.0,0.00021917,2]
[400427337,1767539456001,-500.0,0.00021917,2]
[400427338,1767539456010,-500.0,0.00021917,2]
[400427339,1767539456020,-500.0,0.00021917,2]
[400427340,1767539456029,-186.44819276,0.00021917,2]
[400427341,1767539456039,-827.02,0.00021917,2]
[400427342,1767539456048,-500.0,0.00021917,2]
[400427343,1767539456059,-219.87836258,0.00021917,2]
[400427344,1767539456068,-500.0,0.00021917,2]
[400427345,1767539456077,-500.0,0.00021917,2]
[400427346,1767539456086,-500.0,0.00021917,2]
[400427347,1767539456096,-500.0,0.00021917,2]
[400427348,1767539456105,-500.0,0.00021917,2]
[400427349,1767539456115,-500.0,0.00021917,2]
[400427350,1767539456125,-500.0,0.00021917,2]
[400427351,1767539456134,-500.0,0.00021917,2]
[400427352,1767539456144,-500.0,0.00021917,2]
[400427353,1767539456153,-500.0,0.00021917,2]
[400427354,1767539456163,-500.0,0.00021917,2]
[400427355,1767539456172,-638.78380426,0.00021917,2]
[400427356,1767539456182,-500.0,0.00021917,2]
[400427357,1767539456191,-500.0,0.00021917,2]
[400427358,1767539456201,-308.55732017,0.00021917,2]
[400427359,1767539456210,-500.0,0.00021917,2]
[400427360,1767539456219,-500.0,0.00021917,2]
[400427361,1767539456229,-500.0,0.00021917,2]
[400427362,1767539456238,-500.0,0.00021917,2]
[400427363,1767539456248,-500.0,0.00021917,2]
[400427364,1767539456257,-500.0,0.00021917,2]
[400427365,1767539456267,-500.0,0.00021917,2]
[400427366,1767539456276,-213.75851562,0.00021917,2]
[400427367,1767539456285,-500.0,0.00021917,2]
[400427368,1767539456294,-500.0,0.00021917,2]
[400427369,1767539456303,-343.38209679,0.00021917,2]
[400427370,1767539456313,-500.0,0.00021917,2]
[400427371,1767539456322,-179.0581231,0.00021917,2]
[400427372,1767539456332,-500.0,0.00021917,2]
[400427373,1767539456344,-500.0,0.00021917,2]
[400427374,1767539456354,-234.00764513,0.00021917,2]
[400427375,1767539456364,-500.0,0.00021917,2]
[400427376,1767539456374,-486.4553258,0.00021917,2]
[400427377,1767539456384,-500.0,0.00021917,2]
[400427378,1767539456393,-500.0,0.00021917,2]
[400427379,1767539456403,-500.0,0.00021917,2]
[400427380,1767539456414,-1288.46,0.00021917,2]
[400427381,1767539456425,-414.69177798,0.00021917,2]
[400427382,1767539456434,-500.0,0.00021917,2]
[400427383,1767539456443,-500.0,0.00021917,2]
[400427384,1767539456453,-500.0,0.00021917,2]
[400427385,1767539456462,-544.1136995,0.00021917,2]
[400427386,1767539456472,-500.0,0.00021917,2]
[400427387,1767539456481,-500.0,0.00021917,2]
[400427388,1767539456491,-500.0,0.00021917,2]
[400427389,1767539456500,-568.49153861,0.00021917,2]
[400427390,1767539456510,-500.0,0.00021917,2]
[400427391,1767539456519,-502.67820284,0.00021917,2]
[400427392,1767539456530,-500.0,0.00021917,2]
[400427393,1767539456539,-500.0,0.00021917,2]
[400427394,1767539456548,-500.0,0.00021917,2]
[400427395,1767539456558,-500.0,0.00021917,2]
[400427396,1767539456567,-500.0,0.00021917,2]
[400427397,1767539456577,-500.0,0.00021917,2]
[400427398,1767539456586,-562.66506811,0.00021917,2]
[400427399,1767539456595,-500.0,0.00021917,2]
[400427400,1767539456606,-500.0,0.00021917,2]
[400427401,1767539456616,-500.0,0.00021917,2]
[400427402,1767539456626,-620.70293685,0.00021917,2]
[400427403,1767539456635,-500.0,0.00021917,2]
[400427404,1767539456645,-500.0,0.00021917,2]
[400427405,1767539456655,-500.0,0.00021917,2]
[400427406,1767539456665,-500.0,0.00021917,2]
[400427407,1767539456675,-500.0,0.00021917,2]
[400427408,1767539456684,-500.0,0.00021917,2]
[400427409,1767539456694,-500.0,0.00021917,2]
[400427410,1767539456703,-500.0,0.00021917,2]
[400427411,1767539456712,-500.0,0.00021917,2]
[400427412,1767539456722,-500.0,0.00021917,2]
[400427413,1767539456731,-500.0,0.00021917,2]
[400427414,1767539456741,-249.27874528,0.00021917,2]
[400427415,1767539456751,-500.0,0.00021917,2]
[400427416,1767539456761,-500.0,0.00021917,2]
[400427417,1767539456770,-500.0,0.00021917,2]
[400427418,1767539456780,-500.0,0.00021917,2]
[400427419,1767539456790,-500.0,0.00021917,2]
[400427420,1767539456800,-232.78158865,0.00021917,2]
[400427421,1767539456809,-500.0,0.00021917,2]
[400427422,1767539456819,-500.0,0.00021917,2]
[400427423,1767539456829,-500.0,0.00021917,2]
[400427424,1767539456839,-500.0,0.00021917,2]
[400427425,1767539456849,-500.0,0.00021917,2]
[400427426,1767539456859,-512.13248324,0.00021917,2]
[400427427,1767539456869,-500.0,0.00021917,2]
[400427428,1767539456879,-500.0,0.00021917,2]
[400427429,1767539456889,-500.0,0.00021917,2]
[400427430,1767539456899,-500.0,0.00021917,2]
[400427431,1767539456909,-500.0,0.00021917,2]
[400427432,1767539456919,-500.0,0.00021917,2]
[400427433,1767539456928,-480.29225984,0.00021917,2]
[400427434,1767539456938,-500.0,0.00021917,2]
[400427435,1767539456947,-2587.0008501,0.00021917,2]
[400427436,1767539456958,-500.0,0.00021917,2]
[400427437,1767539456968,-432.36466108,0.00021917,2]
[400427438,1767539456978,-602.07895922,0.00021917,2]
[400427439,1767539456987,-500.0,0.00021917,2]
[400427440,1767539456997,-500.0,0.00021917,2]
[400427441,1767539457007,-500.0,0.00021917,2]
[400427442,1767539457017,-500.0,0.00021917,2]
[400427443,1767539457027,-500.0,0.00021917,2]
[400427444,1767539457036,-500.0,0.00021917,2]
[400427445,1767539457046,-500.0,0.00021917,2]
[400427446,1767539457056,-500.0,0.00021917,2]
[400427447,1767539457065,-508.58833838,0.00021917,2]
[400427448,1767539457075,-500.0,0.00021917,2]
[400427449,1767539457084,-500.0,0.00021917,2]
[400427450,1767539457095,-500.0,0.00021917,2]
[400427451,1767539457104,-500.0,0.00021917,2]
[400427452,1767539457114,-500.0,0.00021917,2]
[400427453,1767539457124,-500.0,0.00021917,2]
[400427454,1767539457134,-500.0,0.00021917,2]
[400427455,1767539457144,-500.0,0.00021917,2]
[400427456,1767539457153,-500.0,0.00021917,2]
[400427457,1767539457163,-500.0,0.00021917,2]
[400427458,1767539457173,-500.0,0.00021917,2]
[400427459,1767539457182,-500.0,0.00021917,2]
[400427460,1767539457192,-500.0,0.00021917,2]
[400427461,1767539457202,-500.0,0.00021917,2]
[400427462,1767539457211,-500.0,0.00021917,2]
[400427463,1767539457221,-500.0,0.00021917,2]
[400427464,1767539457230,-500.0,0.00021917,2]
[400427465,1767539457239,-500.0,0.00021917,2]
[400427466,1767539457249,-500.0,0.00021917,2]
[400427467,1767539457258,-500.0,0.00021917,2]
[400427468,1767539457268,-500.0,0.00021917,2]
[400427469,1767539457277,-497.71228405,0.00021917,2]
[400427470,1767539457286,-500.0,0.00021917,2]
[400427471,1767539457295,-500.0,0.00021917,2]
[400427472,1767539457305,-500.0,0.00021917,2]
[400427473,1767539457314,-500.0,0.00021917,2]
[400427474,1767539457324,-500.0,0.00021917,2]
[400427475,1767539457334,-185.7580817,0.00021917,2]
[400427476,1767539457347,-500.0,0.00021917,2]
[400427477,1767539457357,-500.0,0.00021917,2]
[400427478,1767539457367,-500.0,0.00021917,2]
[400427479,1767539457376,-500.0,0.00021917,2]
[400427480,1767539457386,-500.0,0.00021917,2]
[400427481,1767539457396,-379.6365502,0.00021917,2]
[400427482,1767539457405,-500.0,0.00021917,2]
[400427483,1767539457415,-500.0,0.00021917,2]
[400427484,1767539457426,-534.59,0.00021917,2]
[400427485,1767539457435,-500.0,0.00021917,2]
[400427486,1767539457445,-500.0,0.00021917,2]
[400427487,1767539457454,-500.0,0.00021917,2]
[400427488,1767539457464,-500.0,0.00021917,2]
[400427489,1767539457473,-500.0,0.00021917,2]
[400427490,1767539457482,-500.0,0.00021917,2]
[400427491,1767539457491,-500.0,0.00021917,2]
[400427492,1767539457501,-500.0,0.00021917,2]
[400427493,1767539457510,-500.0,0.00021917,2]
[400427494,1767539457520,-500.0,0.00021917,2]
[400427495,1767539457529,-500.0,0.00021917,2]
[400427496,1767539457538,-500.0,0.00021917,2]
[400427497,1767539457548,-500.0,0.00021917,2]
[400427498,1767539457557,-500.0,0.00021917,2]
[400427499,1767539457567,-500.0,0.00021917,2]
[400427500,1767539457576,-500.0,0.00021917,2]
[400427501,1767539457585,-500.0,0.00021917,2]
[400427502,1767539457595,-525.88411224,0.00021917,2]
[400427503,1767539457605,-500.0,0.00021917,2]
[400427504,1767539457615,-500.0,0.00021917,2]
[400427505,1767539457625,-500.0,0.00021917,2]
[400427506,1767539457635,-500.0,0.00021917,2]
[400427507,1767539457644,-500.0,0.00021917,2]
[400427508,1767539457653,-500.0,0.00021917,2]
[400427509,1767539457662,-2095.09,0.00021917,2]
[400427510,1767539457672,-500.0,0.00021917,2]
[400427511,1767539457681,-500.0,0.00021917,2]
[400427512,1767539457691,-500.0,0.00021917,2]
[400427513,1767539457700,-500.0,0.00021917,2]
[400427514,1767539457710,-500.0,0.00021917,2]
[400427515,1767539457721,-563.69819055,0.00021917,2]
[400427516,1767539457730,-500.0,0.00021917,2]
[400427517,1767539457740,-493.14183944,0.00021917,2]
[400427518,1767539457749,-511.661549,0.00021917,2]
[400427519,1767539457759,-500.0,0.00021917,2]
[400427520,1767539457768,-500.0,0.00021917,2]
[400427521,1767539457777,-500.0,0.00021917,2]
[400427522,1767539457786,-500.0,0.00021917,2]
[400427523,1767539457795,-500.0,0.00021917,2]
[400427524,1767539457805,-500.0,0.00021917,2]
[400427525,1767539457815,-500.0,0.00021917,2]
[400427526,1767539457825,-500.0,0.00021917,2]
[400427527,1767539457835,-500.0,0.00021917,2]
[400427528,1767539457844,-500.0,0.00021917,2]
[400427529,1767539457854,-500.0,0.00021917,2]
[400427530,1767539457864,-500.0,0.00021917,2]
[400427531,1767539457875,-500.0,0.00021917,2]
[400427532,1767539457884,-382.32246452,0.00021917,2]
[400427533,1767539457894,-801.54,0.00021917,2]
[400427534,1767539457903,-500.0,0.00021917,2]
[400427535,1767539457913,-546.00376762,0.00021917,2]
[400427536,1767539457922,-500.0,0.00021917,2]
[400427537,1767539457932,-1000.0,0.00021917,2]
[400427538,1767539457941,-500.0,0.00021917,2]
[400427539,1767539457951,-500.0,0.00021917,2]
[400427540,1767539457960,-500.0,0.00021917,2]
[400427541,1767539457969,-526.00685386,0.00021917,2]
[400427542,1767539457979,-269.42416724,0.00021917,2]
[400427543,1767539457988,-500.0,0.00021917,2]
[400427544,1767539458130,-500.0,0.00021917,2]
[400427545,1767539458139,-2347.96,0.00021917,2]
[400427546,1767539458150,-500.0,0.00021917,2]
[400427547,1767539458159,-322.9,0.00021917,2]
[400427548,1767539458168,-500.0,0.00021917,2]
[400427549,1767539458178,-577.47117892,0.00021917,2]
[400427550,1767539458189,-523.48344317,0.00021917,2]
[400427551,1767539458198,-500.0,0.00021917,2]
[400427552,1767539458208,-227.29451118,0.00021917,2]
[400427553,1767539458221,-500.0,0.00021917,2]
[400427554,1767539458230,-598.49827446,0.00021917,2]
[400427555,1767539458240,-500.0,0.00021917,2]
[400427556,1767539458249,-161.96452039,0.00021917,2]
[400427557,1767539458258,-344.66573703,0.00021917,2]
[400427558,1767539458268,-500.0,0.00021917,2]
[400427559,1767539458278,-500.0,0.00021917,2]
[400427560,1767539458288,-513.35420977,0.00021917,2]
[400427561,1767539458297,-500.0,0.00021917,2]
[400427562,1767539458307,-500.0,0.00021917,2]
[400427563,1767539458316,-500.0,0.00021917,2]
[400427564,1767539458326,-4095.3,0.00021917,2]
[400427565,1767539458336,-500.0,0.00021917,2]
[400427566,1767539458351,-210.9859804,0.00021917,2]
[400427567,1767539458361,-514.41818676,0.00021917,2]
[400427568,1767539458371,-500.0,0.00021917,2]
[400427569,1767539458380,-500.0,0.00021917,2]
[400427570,1767539458390,-557.20784551,0.00021917,2]
[400427571,1767539458400,-346.76670493,0.00021917,2]
[400427572,1767539458411,-500.0,0.00021917,2]
[400427573,1767539458421,-500.0,0.00021917,2]
[400427574,1767539458431,-13255.57,0.00021917,2]
[400427575,1767539458441,-500.0,0.00021917,2]
[400427576,1767539458451,-180.75173847,0.00021917,2]
[400427577,1767539458460,-158.86702408,0.00021917,2]
[400427578,1767539458470,-500.0,0.00021917,2]
[400427579,1767539458480,-304.19635024,0.00021917,2]
[400427580,1767539458489,-500.0,0.00021917,2]
[400427581,1767539458500,-500.0,0.00021917,2]
[400427582,1767539458510,-500.0,0.00021917,2]
[400427583,1767539458520,-500.0,0.00021917,2]
[400427584,1767539458531,-278.31839845,0.00021917,2]
[400427585,1767539458541,-500.0,0.00021917,2]
[400427586,1767539458550,-500.0,0.00021917,2]
[400427587,1767539458560,-500.0,0.00021917,2]
[400427588,1767539458569,-500.0,0.00021917,2]
[400427589,1767539458579,-504.26908047,0.00021917,2]
[400427590,1767539458588,-344.82415608,0.00021917,2]
[400427591,1767539458598,-500.0,0.00021917,2]
[400427592,1767539458607,-500.0,0.00021917,2]
[400427593,1767539458617,-500.0,0.00021917,2]
[400427594,1767539458627,-566.26,0.00021917,2]
[400427595,1767539458636,-500.0,0.00021917,2]
[400427596,1767539458646,-724.86,0.00021917,2]
[400427597,1767539458655,-277.98221667,0.00021917,2]
[400427598,1767539458665,-500.0,0.00021917,2]
[400427599,1767539458675,-605.95376593,0.00021917,2]
[400427600,1767539458685,-452.15969882,0.00021917,2]
[400427601,1767539458696,-500.0,0.00021917,2]
[400427602,1767539458706,-367.57,0.00021917,2]
[400427603,1767539458716,-500.0,0.00021917,2]
[400427604,1767539458725,-500.0,0.00021917,2]
[400427605,1767539458735,-226.10526058,0.00021917,2]
[400427606,1767539458745,-500.0,0.00021917,2]
[400427607,1767539458755,-1000.0,0.00021917,2]
[400427608,1767539458765,-500.0,0.00021917,2]
[400427609,1767539458775,-542.47,0.00021917,2]
[400427610,1767539458785,-244.96632101,0.00021917,2]
[400427611,1767539458795,-500.0,0.00021917,2]
[400427612,1767539458805,-267.72670232,0.00021917,2]
[400427613,1767539458815,-500.0,0.00021917,2]
[400427614,1767539458825,-500.0,0.00021917,2]
[400427615,1767539458835,-468.4379581,0.00021917,2]
[400427616,1767539458847,-500.0,0.00021917,2]
[400427617,1767539458857,-500.0,0.00021917,2]
[400427618,1767539458868,-500.0,0.00021917,2]
[400427619,1767539458878,-200.0,0.00021917,2]
[400427620,1767539458888,-1006.96,0.00021917,2]
[400427621,1767539458898,-186.79662127,0.00021917,2]
[400427622,1767539458909,-325.5990117,0.00021917,2]
[400427623,1767539458920,-500.0,0.00021917,2]
[400427624,1767539458931,-500.0,0.00021917,2]
[400427625,1767539458942,-500.0,0.00021917,2]
[400427626,1767539458953,-500.0,0.00021917,2]
[400427627,1767539458963,-1242.88,0.00021917,2]
[400427628,1767539458973,-2524.79,0.00021917,2]
[400427629,1767539458983,-500.0,0.00021917,2]
[400427630,1767539458994,-500.0,0.00021917,2]
[400427631,1767539459004,-191.87659952,0.00021917,2]
[400427632,1767539459014,-430.45268275,0.00021917,2]
[400427633,1767539459025,-500.0,0.00021917,2]
[400427634,1767539459035,-207.834551,0.00021917,2]
[400427635,1767539459045,-504.82187219,0.00021917,2]
[400427636,1767539459056,-500.0,0.00021917,2]
[400427637,1767539459066,-500.0,0.00021917,2]
[400427638,1767539459076,-611.31,0.00021917,2]
[400427639,1767539459087,-218.84797445,0.00021917,2]
[400427640,1767539459274,-281.15202555,0.00021917,2]
[400427641,1767539459284,-177.08077521,0.00021917,2]
[400427642,1767539459293,-500.0,0.00021917,2]
[400427643,1767539459303,-500.0,0.00021917,2]
[400427644,1767539459311,-417.13069737,0.00021917,2]
[400427645,1767539459320,-382.45228131,0.00021917,2]
[400427646,1767539459329,-500.0,0.00021917,2]
[400427647,1767539459339,-500.0,0.00021917,2]
[400427648,1767539459352,-246.06095595,0.00021917,2]
[400427649,1767539459362,-993.03,0.00021917,2]
[400427650,1767539459371,-500.0,0.00021917,2]
[400427651,1767539459381,-338.47701208,0.00021917,2]
[400427652,1767539459391,-500.0,0.00021917,2]
[400427653,1767539459401,-500.0,0.00021917,2]
[400427654,1767539459411,-500.0,0.00021917,2]
[400427655,1767539459423,-378.4979557,0.00021917,2]
[400427656,1767539459433,-12681.73,0.00021917,2]
[400427657,1767539459442,-163.29018697,0.00021917,2]
[400427658,1767539459453,-500.0,0.00021917,2]
[400427659,1767539459463,-500.0,0.00021917,2]
[400427660,1767539459472,-292.37311856,0.00021917,2]
[400427661,1767539459482,-251.62613165,0.00021917,2]
[400427662,1767539459491,-500.0,0.00021917,2]
[400427663,1767539459501,-500.0,0.00021917,2]
[400427664,1767539459512,-611.79,0.00021917,2]
[400427665,1767539459522,-301.09073168,0.00021917,2]
[400427666,1767539459531,-175.4035062,0.00021917,2]
[400427667,1767539459541,-453.28807457,0.00021917,2]
[400427668,1767539459551,-456.91365497,0.00021917,2]
[400427669,1767539459561,-176.86413577,0.00021917,2]
[400427670,1767539459570,-500.0,0.00021917,2]
[400427671,1767539459580,-500.0,0.00021917,2]
[400427672,1767539459590,-421.94164725,0.00021917,2]
[400427673,1767539459599,-500.0,0.00021917,2]
[400427674,1767539459610,-444.56847459,0.00021917,2]
[400427675,1767539459620,-500.0,0.00021917,2]
[400427676,1767539459629,-500.0,0.00021917,2]
[400427677,1767539459639,-500.0,0.00021917,2]
[400427678,1767539459648,-257.64581385,0.00021917,2]
[400427679,1767539459658,-566.09711507,0.00021917,2]
[400427680,1767539459666,-500.0,0.00021917,2]
[400427681,1767539459674,-500.0,0.00021917,2]
[400427682,1767539459683,-483.85535687,0.00021917,2]
[400427683,1767539459692,-185.59309956,0.00021917,2]
[400427684,1767539459702,-201.46464422,0.00021917,2]
[400427685,1767539459711,-1952.02,0.00021917,2]
[400427686,1767539459721,-500.0,0.00021917,2]
[400427687,1767539459730,-1271.32,0.00021917,2]
[400427688,1767539459740,-500.0,0.00021917,2]
[400427689,1767539459749,-1927.47,0.00021917,2]
[400427690,1767539459759,-429.63655755,0.00021917,2]
[400427691,1767539459768,-500.0,0.00021917,2]
[400427692,1767539459778,-500.0,0.00021917,2]
[400427693,1767539459788,-318.38503472,0.00021917,2]
[400427694,1767539459798,-500.0,0.00021917,2]
[400427695,1767539459808,-500.0,0.00021917,2]
[400427696,1767539459818,-179.27383072,0.00021917,2]
[400427697,1767539459828,-500.0,0.00021917,2]
[400427698,1767539459839,-2230.73,0.00021917,2]
[400427699,1767539459849,-500.0,0.00021917,2]
[400427700,1767539459860,-600.0,0.00021917,2]
[400427701,1767539459871,-657.15,0.00021917,2]
[400427702,1767539459880,-500.0,0.00021917,2]
[400427703,1767539459890,-581.5927834,0.00021917,2]
[400427704,1767539459900,-500.0,0.00021917,2]
[400427705,1767539459911,-500.0,0.00021917,2]
[400427706,1767539459920,-500.0,0.00021917,2]
[400427707,1767539459931,-418.21296983,0.00021917,2]
[400427708,1767539459941,-333.22349954,0.00021917,2]
[400427709,1767539459950,-265.18229715,0.00021917,2]
[400427710,1767539459960,-500.0,0.00021917,2]
[400427711,1767539459970,-353.85391617,0.00021917,2]
[400427712,1767539459979,-500.0,0.00021917,2]
[400427713,1767539459990,-302.9889703,0.00021917,2]
[400427714,1767539460000,-500.0,0.00021917,2]
[400427715,1767539460010,-500.0,0.00021917,2]
[400427716,1767539460020,-418.52184935,0.00021917,2]